Cogmind - Beta 13 X1 @@@ ROGUE MODE // 2023.08.22 @ 16:40:59 Player: Runia Result: Destroyed by G-47 Trooper with Particle Gun Performance ------------- Evolutions (1) 500 Regions Visited (6) 1200 Robots Destroyed (86) 430 Value Destroyed (1789) 1789 Prototype IDs (6) 120 Alien Tech Used (0) 0 Bonus (116) 116 TOTAL SCORE: 4155 Bonus ------- High Alert Combat Kills 43 Follower Combat Kills 73 Cogmind --------- Core Integrity 0/400 Matter 620/650 Energy 299/310 System Corruption 0% Temperature Cool (9) Movement Rolling (225) Ox9 Location -8/Mines Parts ------- > --- POWER (1) -------- Reinforced Fission Core > --- PROPULSION (2) --- Light Treads Armored Wheel > --- UTILITY (4) ------ Huge Storage Unit Large Matter Pod High-capacity Matter Pod Experimental Targeting Computer > --- WEAPON (2) ------- Rocket Launcher Mini Grenade Launcher > --- INVENTORY (25) --- Light Treads Light Treads Advanced Myomer Leg Armored Wheel Experimental Sensor Array Long-range Tractor Beam Improved Medium Laser Light EM Pulse Cannon Heavy Assault Rifle Heavy Assault Rifle Improved Assault Rifle Improved Assault Rifle 8R-AWN's Boregun 8R-AWN's Boregun Mini Grenade Launcher Datajack Hammer Peak State ------------ > --- POWER ------------ Improved Ion Engine > --- PROPULSION ------- Light Treads Armored Wheel > --- UTILITY ---------- Huge Storage Unit Large Matter Pod High-capacity Matter Pod Experimental Targeting Computer > --- WEAPON ----------- 8R-AWN's Boregun 8R-AWN's Boregun > --- INVENTORY -------- Reinforced Fission Core Light Treads Light Treads Advanced Myomer Leg Armored Wheel Experimental Sensor Array Long-range Tractor Beam Improved Medium Laser Light EM Pulse Cannon Heavy Assault Rifle Heavy Assault Rifle Improved Assault Rifle Improved Assault Rifle Rocket Launcher Mini Grenade Launcher Mini Grenade Launcher Datajack Hammer [Rating: 39] Favorites ----------- Power Heavy Ion Engine Engine Heavy Ion Engine Power Core Light Nuclear Core Propulsion Light Treads Treads Light Treads Leg Aluminum Leg Wheel Armored Wheel Utility Improved Heat Sink Device Improved Heat Sink Storage Huge Storage Unit Processor Experimental Targeting Computer Hackware System Shield Protection Light Armor Plating Weapon Particle Cannon Energy Gun Medium Laser Energy Cannon Particle Cannon Ballistic Gun Light Assault Rifle Launcher Mini Grenade Launcher Special Weapon Plasma Cutter Impact Weapon Hammer Special Melee Weapon Datajack Build | -11 -10 -10 -9 -9 -9 -8 ------- Run | Jun Mat Min Mat Min Exi Min Slots Evolved 2 | . . . 2 . . . Power . | . . . . . . . Propulsion . | . . . . . . . Utility 2 | . . . 2 . . . Weapon . | . . . . . . . Parts Attached 76 | 2 10 2 34 5 20 3 Power 9 | . 2 . 5 . 1 1 Engine 5 | . 2 . 2 . 1 . Core 4 | . . . 3 . . 1 Reactor . | . . . . . . . Propulsion 19 | 2 3 . 9 . 5 . Treads 13 | 2 1 . 6 . 4 . Leg . | . . . . . . . Wheel 6 | . 2 . 3 . 1 . Hover . | . . . . . . . Flight . | . . . . . . . Utility 20 | . 2 1 11 1 5 . Device 5 | . . 1 4 . . . Storage 9 | . 2 . 5 . 2 . Processor 1 | . . . . . 1 . Hackware 1 | . . . 1 . . . Protection 4 | . . . 1 1 2 . Artifact . | . . . . . . . Weapon 28 | . 3 1 9 4 9 2 Energy Gun 4 | . 1 . 2 1 . . Energy Cannon 2 | . . . 2 . . . Ballistic Gun 14 | . 1 1 4 2 6 . Ballistic Cannon . | . . . . . . . Launcher 4 | . . . 1 . 1 2 Special Weapon 2 | . . . . . 2 . Impact Weapon 1 | . . . . 1 . . Slashing Weapon . | . . . . . . . Piercing Weapon . | . . . . . . . Special Melee Weapon 1 | . 1 . . . . . Unidentified Prototypes 2 | . . . . . 2 . Parts Lost 23 | . 1 1 8 . 12 1 Power 5 | . 1 . 2 . 1 1 Propulsion 5 | . . . 2 . 3 . Utility 8 | . . . 3 . 5 . Weapon 5 | . . 1 1 . 3 . Highest Loss Streak 11 | . 1 1 4 . 11 1 To Critical Strikes 3 | . . . . . 3 . Average Slot Usage (%) 94 | . 84 95 94 100 97 98 Engine 10 | . 12 14 7 11 11 3 Core 1 | . . . 3 . . 6 Treads 13 | . 20 14 10 11 12 11 Wheel 10 | . 7 14 10 11 9 11 Device 15 | . . 10 20 30 16 . Storage 13 | . 14 14 12 11 15 33 Protection 3 | . . . 5 2 8 . Energy Gun 6 | . 13 7 8 2 . . Energy Cannon 4 | . . . 7 9 . . Ballistic Gun 10 | . 14 20 5 3 20 12 Impact Weapon 1 | . . . . 6 . . Naked Turns . | . . . . . . . Heaviest Build 115 | 11 88 87 101 101 106 115 Greatest Support 40 | 40 40 10 12 12 12 12 Greatest Overweight (x) 9 | . 8 8 8 8 8 9 Average Overweight (x) 6 | . 3 8 7 8 7 8 Largest Inventory Capacity 25 | 8 25 25 25 25 25 25 Average Capacity 23 | 8 19 25 24 25 25 25 Most Carried 25 | 6 15 17 25 25 25 18 Average Carried 19 | 5 9 16 23 24 21 17 Final Capacity 25 | 8 25 25 25 25 25 25 Final Carried 25 | 4 14 16 25 25 18 17 Class Distribution -------------------- 82% | Mutant 17% | Scavenger-Mutant Dominant Class ---------------- Mutant | -10/Materials Mutant | -10/Mines Mutant | -9/Materials Mutant | -9/Mines Scavenger-Mutant | -9/Exiles Scavenger-Mutant | -8/Mines Resources | -11 -10 -10 -9 -9 -9 -8 ----------- Run | Jun Mat Min Mat Min Exi Min Matter Collected 2259 | 200 382 89 856 84 601 47 Remotely . | . . . . . . . Salvage Created 3215 | . 662 143 2109 135 118 48 Parts 200 | . 41 8 122 16 5 8 Haulers Intercepted 7 | . 2 . 5 . . . Recyclers Shooed 5 | . . . 5 . . . Parts Field Recycled . | . . . . . . . Retrieved Matter . | . . . . . . . Parts Self-Destructed . | . . . . . . . Prevented . | . . . . . . . Kills | -11 -10 -10 -9 -9 -9 -8 ------- Run | Jun Mat Min Mat Min Exi Min Combat Hostiles Destroyed 63 | . 14 5 31 7 2 4 Guns 40 | . 14 5 14 4 1 2 Cannons 17 | . . . 14 3 . . AOE 6 | . . . 3 . 1 2 Classes Destroyed 11 | . 5 . 3 2 1 . Worker 2 | . . . 2 . . . Tunneler 1 | . . . . 1 . . Hauler 7 | . 2 . 5 . . . Recycler 9 | . 1 . 8 . . . Watcher 5 | . 2 . 3 . . . Swarmer 26 | . 6 3 7 6 . 4 Grunt 26 | . 8 2 16 . . . Duelist 1 | . . . 1 . . . Sentry 7 | . . . 7 . . . Demolisher 1 | . . . . 1 . . Assembled 1 | . . . . . 1 . Best Kill Streak 7 | . 4 3 7 3 1 2 Combat Bots Only 5 | . 3 3 5 3 1 2 Max Kills in Single Turn 3 | . 1 1 3 1 1 2 Gunslinging . | . . . . . . . Exploded 2 | . . . 2 . 1 2 Melee . | . . . . . . . Uniques/NPCs Destroyed 1 | . . . . . 1 . 8R-AWN (-9/Exiles) Combat | -11 -10 -10 -9 -9 -9 -8 -------- Run | Jun Mat Min Mat Min Exi Min Damage Taken 3686 | . 458 254 1235 230 1422 87 Core 528 | . 32 90 148 49 184 25 Absorbed by Shields . | . . . . . . . Regen/Repaired (Parts) 276 | . . . 276 . . . Core Remaining (%) 75 | 100 . 51 . . . . Volleys Fired 257 | . 58 18 115 11 47 8 Largest 2 | . 2 2 2 2 2 1 Hottest 124 | . 70 70 124 124 46 30 Shots Fired 493 | . 118 35 225 22 85 8 Gun 407 | . 118 35 160 15 72 7 Cannon 70 | . . . 63 7 . . Launcher 4 | . . . 2 . 1 1 Special 12 | . . . . . 12 . Kinetic 263 | . 59 23 94 8 72 7 Thermal 214 | . 59 12 129 14 . . Explosive 4 | . . . 2 . 1 1 Electromagnetic . | . . . . . . . Impact 12 | . . . . . 12 . Robot Hit Streak 19 | . 12 8 16 4 19 4 Robot Miss Streak 4 | . 4 2 3 2 1 1 Penetration Max . | . . . . . . . Secondary Targets 2 | . . . 2 . . . Max Gunslinging Chain 1 | . . . 1 . . . Shots Hit Robots 328 | . 71 24 145 10 73 5 Core Hits 144 | . 36 11 69 9 15 4 Critical Kills 3 | . . . 2 1 . . Critical Parts Destroyed 2 | . . . 2 . . . Critical Strikes 9 | . 1 1 6 1 . . Burn 4 | . 1 1 2 . . . Destroy 5 | . . . 4 1 . . Melee Attacks 7 | . . . . 7 . . Impact 7 | . . . . 7 . . Slashing . | . . . . . . . Piercing . | . . . . . . . Sneak Attacks . | . . . . . . . Combat Hostiles . | . . . . . . . Follow-up Attacks . | . . . . . . . Damage Inflicted 4888 | . 718 233 2435 210 1085 207 Guns 3413 | . 718 233 1320 101 946 95 Cannons 1046 | . . . 937 109 . . Explosions 331 | . . . 178 . 41 112 Melee . | . . . . . . . Ramming . | . . . . . . . Kinetic 2286 | . 321 144 732 48 946 95 Thermal 2173 | . 397 89 1525 162 . . Explosive 331 | . . . 178 . 41 112 Electromagnetic . | . . . . . . . Impact 98 | . . . . . 98 . Slashing . | . . . . . . . Piercing . | . . . . . . . Highest Corruption 4 | . 4 4 . . . . Average Corruption 3 | . 3 4 . . . . Corruption Purged . | . . . . . . . Corruption Blocked . | . . . . . . . Effects 59 | . 34 25 . . . . Message Errors 17 | . 8 9 . . . . Matter Fused 13 | . 8 5 . . . . Heat Flow Errors 4 | . 2 2 . . . . Energy Discharges 7 | . 5 2 . . . . Parts Rejected 1 | . 1 . . . . . Data Loss (minor) 7 | . 4 3 . . . . Data Loss (major) 2 | . . 2 . . . . Misfires 3 | . 3 . . . . . Alerts 3 | . 2 1 . . . . Weapon Failures 2 | . 1 1 . . . . Overload Shots . | . . . . . . . Overflow Damage . | . . . . . . . Projectiles . | . . . . . . . Explosions . | . . . . . . . Melee . | . . . . . . . Knockbacks . | . . . . . . . Impact . | . . . . . . . Kinetic . | . . . . . . . Secondary . | . . . . . . . Self-Inflicted Damage 30 | . . . . . 30 . Shots 1 | . . . . . 1 . Rammed . | . . . . . . . Targets Rammed . | . . . . . . . Kicked . | . . . . . . . Crushed . | . . . . . . . Highest Temperature 234 | . 205 234 27 . . . Average Temperature 55 | . 50 89 8 . . . Received Heat Transfer 714 | . 174 78 453 . . 9 Siege Activations . | . . . . . . . Robots Corrupted . | . . . . . . . Combat Hostiles . | . . . . . . . Parts Fried . | . . . . . . . Impact Corruptions . | . . . . . . . Robots Melted 1 | . . . 1 . . . Combat Hostiles . | . . . . . . . Parts Melted 9 | . 2 . 5 2 . . Heat Transferred 4995 | . 1258 333 3108 296 . . Parts Sabotaged . | . . . . . . . Parts Stolen . | . . . . . . . Parts Stripped . | . . . . . . . Power Chain Reactions . | . . . . . . . Missiles Intercepted . | . . . . . . . Alert | -11 -10 -10 -9 -9 -9 -8 ------- Run | Jun Mat Min Mat Min Exi Min Peak Influence 513 | . 249 119 513 201 . 136 Initial 193 | . . 74 7 193 . . Average 156 | . 115 45 270 64 . 91 Maximum Alert Level 2 | . 1 . 2 1 . . Low Security (%) 64 | 100 82 100 27 87 . 100 Level 1 23 | . 17 . 43 12 . . Level 2 11 | . . . 28 . . . Level 3 . | . . . . . . . Level 4 . | . . . . . . . Level 5 . | . . . . . . . High Security . | . . . . . . . Max Security . | . . . . . . . Squads Dispatched 7 | . 3 . 4 . . . Investigation 2 | . 1 . 1 . . . Extermination . | . . . . . . . Reinforcement 5 | . 2 . 3 . . . Assault . | . . . . . . . Garrison . | . . . . . . . Intercept . | . . . . . . . Searches Triggered . | . . . . . . . Construction Impeded . | . . . . . . . Haulers Reinforced . | . . . . . . . Active Scanning Responses . | . . . . . . . Cargo Convoy Interrupts . | . . . . . . . Stealth | -11 -10 -10 -9 -9 -9 -8 --------- Run | Jun Mat Min Mat Min Exi Min Distress Signals 5 | . . . 4 1 . . Communications Jammed . | . . . . . . . Distress Signals . | . . . . . . . Times Spotted 116 | . 31 6 56 10 5 8 Peak Tracking Total 10 | . 4 3 6 4 10 4 Tactical Retreats 6 | . 2 1 1 . 1 1 Traps | -11 -10 -10 -9 -9 -9 -8 ------- Run | Jun Mat Min Mat Min Exi Min Traps Triggered 5 | . 3 . 2 . . . Indirectly . | . . . . . . . Trap Hack Attempts 36 | . 36 . . . . . Triggered . | . . . . . . . Disarmed . | . . . . . . . Reprogrammed 2 | . 2 . . . . . Reused . | . . . . . . . Traps Extracted . | . . . . . . . Installed . | . . . . . . . Triggered . | . . . . . . . Most Traps Carried 3 | . . 3 3 . . . Machines | -11 -10 -10 -9 -9 -9 -8 ---------- Run | Jun Mat Min Mat Min Exi Min Machines Disabled 7 | . . . 2 . 5 . Max in Single Turn 3 | . . . 1 . 3 . Machines Repaired . | . . . . . . . Machines Sabotaged . | . . . . . . . Overloaded Fab Kills . | . . . . . . . Hacking | -11 -10 -10 -9 -9 -9 -8 --------- Run | Jun Mat Min Mat Min Exi Min Machines Accessed 16 | . 5 . 10 . 1 . Terminals 12 | . 5 . 7 . . . Fabricators . | . . . . . . . Repair Stations 2 | . . . 2 . . . Recycling Units 1 | . . . 1 . . . Scanalyzers . | . . . . . . . Garrison Access . | . . . . . . . Total Hacks 52 | . 16 . 35 . 1 . Successful 27 | . 10 . 16 . 1 . Failed 25 | . 6 . 19 . . . Catastrophic 2 | . . . 2 . . . Database Lockouts . | . . . . . . . Manual 8 | . 5 . 3 . . . Terminals 39 | . 16 . 23 . . . Fabricators . | . . . . . . . Repair Stations 10 | . . . 10 . . . Recycling Units 2 | . . . 2 . . . Scanalyzers . | . . . . . . . Garrison Access . | . . . . . . . Terminal Hacks 20 | . 10 . 9 . 1 . Record 1 | . . . . . 1 . Part Schematic 1 | . 1 . . . . . Robot Analysis 4 | . 2 . 2 . . . Prototype ID Bank 2 | . 1 . 1 . . . Locate Traps 5 | . 2 . 3 . . . Hauler Manifests 3 | . 2 . 1 . . . Registered Components 1 | . 1 . . . . . Zone Layout 3 | . 1 . 2 . . . Fabricator Hacks . | . . . . . . . Repair Station Hacks 7 | . . . 7 . . . Scan Component 4 | . . . 4 . . . Repair 3 | . . . 3 . . . Recycling Unit Hacks . | . . . . . . . Scanalyzer . | . . . . . . . Garrison Access Hacks . | . . . . . . . Unauthorized Hacks . | . . . . . . . Terminals . | . . . . . . . Fabricators . | . . . . . . . Repair Stations . | . . . . . . . Recycling Units . | . . . . . . . Scanalyzers . | . . . . . . . Garrison Access . | . . . . . . . Data Cores Recovered . | . . . . . . . Used . | . . . . . . . Hacking Detections 15 | . 5 . 10 . . . Full Trace Events 1 | . . . 1 . . . Feedback Events . | . . . . . . . Feedback Blocked . | . . . . . . . Robot Schematics Acquired . | . . . . . . . Robots Built . | . . . . . . . Authchips . | . . . . . . . Time . | . . . . . . . Total Robot Build Rating . | . . . . . . . Part Schematics Acquired 1 | . 1 . . . . . Parts Built . | . . . . . . . Authchips . | . . . . . . . Time . | . . . . . . . Total Part Build Rating . | . . . . . . . Parts Repaired 3 | . . . 3 . . . Time 84 | . . . 84 . . . Parts Recycled . | . . . . . . . Recycled Matter . | . . . . . . . Retrieved Matter . | . . . . . . . Retrieved Components . | . . . . . . . Parts Scanalyzed . | . . . . . . . Part Schematics Acquired . | . . . . . . . Parts Damaged . | . . . . . . . Bothacking | -11 -10 -10 -9 -9 -9 -8 ------------ Run | Jun Mat Min Mat Min Exi Min Used RIF Installer . | . . . . . . . Robots Hacked . | . . . . . . . Non-combat . | . . . . . . . Combat . | . . . . . . . Robot Hacks Applied . | . . . . . . . Relay Couplers Released . | . . . . . . . Fabnet Peak Effective % . | . . . . . . . Robots Rewired . | . . . . . . . Allies Hacked . | . . . . . . . Hacks Repelled . | . . . . . . . Allies | -11 -10 -10 -9 -9 -9 -8 -------- Run | Jun Mat Min Mat Min Exi Min Total Allies 5 | . . 3 . 2 . . Largest Group 3 | . . 3 3 2 . . Highest-Rated Group 42 | . . 40 40 42 . . Highest-Rated Ally 31 | . . 16 16 31 . . Total Orders . | . . . . . . . Ally Attacks 23 | . . . 17 6 . . Total Damage 214 | . . . 149 65 . . Kills 3 | . . . 2 1 . . Allies Corrupted . | . . . . . . . Allies Melted . | . . . . . . . Intel | -11 -10 -10 -9 -9 -9 -8 ------- Run | Jun Mat Min Mat Min Exi Min Robot Analysis Total 4 | . 2 . 2 . . . Derelict Logs Recovered 4 | . . 3 . 1 . . Drone Launches . | . . . . . . . Drone Recoveries . | . . . . . . . Exploration | -11 -10 -10 -9 -9 -9 -8 ------------- Run | Jun Mat Min Mat Min Exi Min Turns Passed 8641 | 3 1505 1117 3037 1457 1134 388 Spaces Moved 3320 | 1 690 526 1217 281 438 167 Core . | . . . . . . . Treads 299 | 1 298 . . . . . Legs . | . . . . . . . Wheels 3021 | . 392 526 1217 281 438 167 Hover . | . . . . . . . Flight . | . . . . . . . Fastest Speed 105 | 160 160 200 105 210 195 195 Average Speed 199 | 160 180 200 202 210 209 216 Slowest Speed 240 | 160 240 200 210 210 210 225 Overloaded Moves . | . . . . . . . Propulsion Burnouts . | . . . . . . . Robots Hopped . | . . . . . . . Cave-ins Triggered . | . . . . . . . Exploration Rate (%) 65 | 2 98 98 94 74 51 44 Regions Visited 6 Branch Regions 4 Pre-discovered Areas 1 | . . . . . 1 . Known Exits Taken . | . . . . . . . Unknown Exits Taken 6 | 1 1 1 1 1 1 . Scrap Searched 2 | . . 1 . 1 . . Spaces Dug 14 | . . . . 5 . 9 Terrain Destroyed 42 | . . . 17 5 6 14 Melee 5 | . . . . 5 . . Projectile 5 | . . . . . . 5 AOE 32 | . . . 17 . 6 9 Terrain Rammed . | . . . . . . . Walls Destroyed . | . . . . . . . Machines Disabled . | . . . . . . . Actions | -11 -10 -10 -9 -9 -9 -8 --------- Run | Jun Mat Min Mat Min Exi Min Total 4856 | 4 848 559 1586 1115 560 184 Wait 1023 | . 29 11 138 804 35 6 Move 3314 | . 689 525 1216 280 437 167 Hop . | . . . . . . . Pick Up 90 | . 17 3 53 4 13 . Fast Attach 13 | . 3 1 9 . . . Attach 27 | 2 1 1 8 2 12 1 Detach 1 | . . . 1 . . . Swap 36 | . 6 . 17 3 8 2 Drop 52 | 2 9 . 29 4 8 . Fire 257 | . 58 18 115 11 47 8 Melee 7 | . . . . 7 . . Ram . | . . . . . . . Kick . | . . . . . . . Crush . | . . . . . . . Escape Stasis . | . . . . . . . Rewire . | . . . . . . . Trap 36 | . 36 . . . . . Miscellaneous . | . . . . . . . Route ------- -11/Junkyard -10/Materials (discovered 5 exits: *Mat x3 / [*Min x2]) -10/Mines (discovered 3 exits: *Mat x2 / *Sub) -9/Materials (discovered 5 exits: [*Mat x2] / [*Min] / [*Sto x2]) -9/Mines (discovered 4 exits: [*Mat x2] / *Exi / [*Zio]) -9/Exiles -8/Mines History --------- Turn | Location | Event 4 | -11/Junkyard | Discovered new exit (range 0) 4 | -11/Junkyard | Entered Materials 315 | -10/Materials | Build established: Mutant 372 | -10/Materials | Discovered new exit (range 6) 565 | -10/Materials | Discovered new exit (range 7) 649 | -10/Materials | Discovered new exit (range 8) 971 | -10/Materials | Discovered new exit (range 16) 1264 | -10/Materials | Discovered new exit (range 11) 1509 | -10/Materials | Entered Mines 1594 | -10/Mines | Identified exit to Subcaves 1636 | -10/Mines | Found a hidden stash of uninstalled traps 1879 | -10/Mines | Learned Materials emergency access door positions 1967 | -10/Mines | Learned 2 Materials zone layouts 1969 | -10/Mines | Discovered new exit (range 11) 2224 | -10/Mines | Discovered new exit (range 12) 2549 | -10/Mines | Assisted by bots powering up and referring to "LRC-V3" 2626 | -10/Mines | Entered Materials 2626 | -9/Materials | Accompanied by 3 allies 2626 | -9/Materials | Evolved 2 slots: Utility x2 2843 | -9/Materials | Discovered new exit (range 16) 3005 | -9/Materials | Repaired Lgt. Assault Rifle 3245 | -9/Materials | Discovered new exit (range 15) 3383 | -9/Materials | Discovered new exit (range 13) 3457 | -9/Materials | Lost 4 parts (1p1n1u1w) 3754 | -9/Materials | Repaired Huge Storage Unit 3851 | -9/Materials | Repaired Arm. Wheel 4147 | -9/Materials | Discovered new exit (range 5) 5377 | -9/Materials | Discovered new exit (range 7) 5663 | -9/Materials | Entered Mines 5674 | -9/Mines | Learned Materials emergency access door positions 5869 | -9/Mines | Assembled infested the area 5890 | -9/Mines | A Derelict revealed a hidden shortcut to a safe place 6776 | -9/Mines | Discovered new exit (range 3) 6776 | -9/Mines | Discovered new exit (range 5) 6893 | -9/Mines | Joined a pair of Derelicts in attacking an 0b10 outpost 7037 | -9/Mines | Found a damaged Exp. Sensor Array with a note attached 7042 | -9/Mines | Found Prototype Device 7112 | -9/Mines | Deemed a non-threat by the Exiles lab entrance 7112 | -9/Mines | Discovered new exit (range 5) 7120 | -9/Mines | Entered Exiles 7171 | -9/Exiles | Met 8R-AWN 7209 | -9/Exiles | Met EX-HEX 7215 | -9/Exiles | Build established: Scavenger-Mutant 7288 | -9/Exiles | Met EX-DEC 7299 | -9/Exiles | Learned location of Zion (-7) 7410 | -9/Exiles | Discovered new exit (range 10) 7828 | -9/Exiles | Attacked by the Exiles 7926 | -9/Exiles | Core integrity fell below 50% 7987 | -9/Exiles | Core integrity fell below 20% 8061 | -9/Exiles | Destroyed 8R-AWN 8068 | -9/Exiles | Found Prototype Ballistic Gun 8071 | -9/Exiles | Found Prototype Processor 8076 | -9/Exiles | Found Prototype Ballistic Gun 8083 | -9/Exiles | Identified Exp. Targeting Computer 8085 | -9/Exiles | Lost 11 parts (1p3n4u3w) 8123 | -9/Exiles | Build established: Mutant 8124 | -9/Exiles | Identified 8R-AWN's Boregun (x2) 8254 | -9/Exiles | Entered Mines 8440 | -8/Mines | Build established: Scavenger-Mutant 8642 | -8/Mines | Destroyed by G-47 Trooper with Particle Gun Last Messages --------------- 08356_ HV Slug penetrates S-10 Pest. 08356_ Destroyed Flight Unit. 08356_ HV Slug penetrates Wall. 08360_ HV Slug penetrates S-10 Pest. 08360_ HV Slug penetrates Wall. 08361_ Imp. Ion Engine destroyed. 08362_ HV Slug penetrates S-10 Pest. 08362_ S-10 Pest destroyed. 08362_ HV Slug penetrates Wall. 08364_ HV Slug penetrates S-10 Pest. 08364_ HV Slug penetrates Wall. 08366_ HV Slug penetrates S-10 Pest. 08366_ S-10 Pest destroyed. 08366_ HV Slug penetrates Wall. 08370_ Acquired 20 matter. 08378_ Acquired 18 matter. 08417_ S-10 Pest destroyed. 08436_ Acquired 9 matter. 08449_ R-06 Scavenger collects Lgt. Assault Rifle. 08453_ R-06 Scavenger collects Flight Unit. Map ----- +----------------------------------------------------+ | ??????? """ "??????# ##???? | | ??????# """ """ #### #????? | | ??????# ?????""" ##????? | | ??????# ???? # ### ####?????? | | ?????????????????????#### #????????? | | ????????????????????????# ########## | | ????????????????????????# # | | ????####????????????????########## # | | ???## ##???????????????????????# # | | ??## #??????????????####?????# # | | ??# ##????????#???## ##????# # | | ??# ##?????? #???# ##???# | | ??# #???### ?????# #???### | | ???# #???# b???????# #?????? | | ???# ##??# #??????## #####?? | | ??# ####g##????## ## ##? | | ?# ## ###### #? | | ?# #?## ## | | ?# #???## | | ?## #????## # | | ??###????## ## ### ## | | ????????## r##### ##?####? | | ??###???# ##???#########??????? | | ?## #?## #???????????????????? | | ?# ## #???????????????????? | | ?# @ #???????????????????? | | ?# ##??????????????????? | | ?## #??????????????????? | | ??### #?????????????????? | | ????## #?????????????????? | | ?????## #?????????????????? | | ??????## #?????????????????? | | ???????## #?????????????????? | | ????????##### ##?????????????????? | | ?????????????####??????????????????? | | ???????????????????????????????????? | | ???????????????????????????????????? | | ???????????????????????????????????? | | ???????????????????????????????????? | | | | | | | | | | | | | | | | | | | | | | | +----------------------------------------------------+ Best States ------------- Heat Dissipation 78 Energy Generation 19 Energy Capacity 310 Matter Stores 650 Matter Capacity 650 Sight Range 16 Terrain Scan Density 10 Armor Coverage 150 Evasion (%) 40 Targeting Accuracy 12 Recoil Reduction 2 Defensive Hacking 10 Item Schematics ----------------- Lgt. Ion Engine | -10/Materials | Hacked Robot Schematics ------------------ None Fabricated ------------ Nothing Alien Tech Used ----------------- None Achievements -------------- None Challenges ------------ None Game ------ Seed GodCouplerAirjet Manual? 0 Play Time 00:32:14 Cumulative 846.4 hours Start 2023.08.22 @ 16:09:12 End 2023.08.22 @ 16:40:59 Sessions 1 Manual Loads 0 Difficulty Rogue Special Mode None Game No. 729 Rogue 729 Adventurer 0 Explorer 0 Win Type - Total 43 Types 15/7/9/1/1/1/7/1/1 Lore% 93 Gallery% 96 Achievement% 82 Wizard Run 0 Options --------- ASCII 0 Keyboard 0 Movement Mouse Keybinds 1 Fullscreen 2 Font 24/Smallcaps Map View 76x50 Tactical HUD 1 Map Filters NONE Filters NONE Steam 1 RUN: 6327627f-a5c0-4487-9686-e65e27666138